fUSD/lending_fUSD_20251225
["ID","MTS","AMOUNT","RATE_DAILY","PERIOD"]
[399779668,1766667037903,-200.0,0.00014624,2]
[399779670,1766667037913,-207.4,0.00014624,2]
[399779672,1766667037923,-500.0,0.00014624,2]
[399779673,1766667037934,-468.52172957,0.00014624,2]
[399779674,1766667037944,-500.0,0.00014624,2]
[399779675,1766667037955,-1500.0,0.00014624,2]
[399779676,1766667037966,-200.0,0.00014624,2]
[399779677,1766667037975,-500.0,0.00014624,2]
[399779678,1766667037986,-1500.0,0.00014624,2]
[399779679,1766667037996,-500.0,0.00014624,2]
[399779680,1766667038006,-1500.0,0.00014624,2]
[399779681,1766667038016,-500.0,0.00014624,2]
[399779682,1766667038027,-500.0,0.00014624,2]
[399779683,1766667038038,-620.0,0.00014624,2]
[399779684,1766667038048,-500.0,0.00014624,2]
[399779685,1766667038059,-1500.0,0.00014624,2]
[399779686,1766667038069,-574.12855637,0.00014624,2]
[399779687,1766667038079,-500.0,0.00014624,2]
[399779688,1766667038089,-1500.0,0.00014624,2]
[399779689,1766667038100,-500.0,0.00014624,2]
[399779690,1766667038110,-500.0,0.00014624,2]
[399779691,1766667038125,-1500.0,0.00014624,2]
[399779692,1766667038135,-500.0,0.00014624,2]
[399779693,1766667038146,-500.0,0.00014624,2]
[399779694,1766667038156,-1500.0,0.00014624,2]
[399779695,1766667038167,-500.0,0.00014624,2]
[399779696,1766667038178,-500.0,0.00014624,2]
[399779697,1766667038188,-500.0,0.00014624,2]
[399779698,1766667038199,-1500.0,0.00014624,2]
[399779699,1766667038209,-500.0,0.00014624,2]
[399779700,1766667038219,-500.0,0.00014624,2]
[399779701,1766667038230,-500.0,0.00014624,2]
[399779702,1766667038244,-1500.0,0.00014624,2]
[399779703,1766667038254,-500.0,0.00014624,2]
[399779704,1766667038267,-500.0,0.00014624,2]
[399779705,1766667038279,-500.0,0.00014624,2]
[399779706,1766667038290,-1500.0,0.00014624,2]
[399779707,1766667038300,-500.0,0.00014624,2]
[399779708,1766667038310,-500.0,0.00014624,2]
[399779709,1766667038322,-500.0,0.00014624,2]
[399779710,1766667038333,-500.0,0.00014624,2]
[399779711,1766667038343,-1500.0,0.00014624,2]
[399779712,1766667038354,-500.0,0.00014624,2]
[399779713,1766667038365,-500.0,0.00014624,2]
[399779714,1766667038375,-500.0,0.00014624,2]
[399779715,1766667038385,-500.0,0.00014624,2]
[399779716,1766667038395,-500.0,0.00014624,2]
[399779717,1766667038406,-500.0,0.00014624,2]
[399779718,1766667038417,-500.0,0.00014624,2]
[399779719,1766667038427,-500.0,0.00014624,2]
[399779720,1766667038437,-500.0,0.00014624,2]
[399779721,1766667038447,-115.40475298,0.00014624,2]
[399779722,1766667038462,-384.59524702,0.00014624,2]
[399779723,1766667038472,-500.0,0.00014624,2]
[399779724,1766667038816,-500.0,0.00014624,2]
[399779725,1766667038829,-1500.0,0.00014624,2]
[399779726,1766667038840,-500.0,0.00014624,2]
[399779727,1766667038851,-500.0,0.00014624,2]
[399779728,1766667038862,-1500.0,0.00014624,2]
[399779729,1766667038872,-500.0,0.00014624,2]
[399779730,1766667038883,-197.33807669,0.00014624,2]
[399779731,1766667038894,-1500.0,0.00014624,2]
[399779732,1766667038903,-1000.0,0.00014624,2]
[399779733,1766667038914,-151.0,0.00014624,2]
[399779734,1766667038924,-151.0,0.00014624,2]
[399779735,1766667038934,-270.70817201,0.00014624,2]
[399779736,1766667038944,-500.0,0.00014624,2]
[399779737,1766667038955,-500.0,0.00014624,2]
[399779738,1766667038965,-500.0,0.00014624,2]
[399779739,1766667038976,-151.0,0.00014624,2]
[399779740,1766667038986,-500.0,0.00014624,2]
[399779741,1766667038995,-151.0,0.00014624,2]
[399779742,1766667039006,-500.0,0.00014624,2]
[399779743,1766667039017,-151.0,0.00014624,2]
[399779744,1766667039028,-500.0,0.00014624,2]
[399779745,1766667039039,-500.0,0.00014624,2]
[399779746,1766667039050,-151.0,0.00014624,2]
[399779747,1766667039060,-500.0,0.00014624,2]
[399779748,1766667039071,-4.64500968,0.00014624,2]
[399779757,1766667042661,-146.35499032,0.00014624,2]
[399779758,1766667042672,-500.0,0.00014624,2]
[399779759,1766667042683,-151.0,0.00014624,2]
[399779760,1766667042693,-334.76468062,0.00014624,2]
[399779761,1766667042703,-151.0,0.00014624,2]
[399779762,1766667042713,-151.0,0.00014624,2]
[399779763,1766667042723,-151.0,0.00014624,2]
[399779764,1766667042733,-151.0,0.00014624,2]
[399779765,1766667042742,-151.88032906,0.00014624,2]
[399779766,1766667042759,-98.11967094,0.00014624,2]
[399779767,1766667042770,-151.0,0.00014624,2]
[399779768,1766667042780,-250.0,0.00014624,2]
[399779769,1766667042790,-151.0,0.00014624,2]
[399779770,1766667042799,-76.90648043,0.00014624,2]
[399779775,1766667045713,-166.54682161,0.00014531,2]
[399779776,1766667045723,-631.48815867,0.00014531,2]
[399779777,1766667045734,-173.09351957,0.00014624,2]
[399779778,1766667045743,-250.0,0.00014624,2]
[399779779,1766667045754,-133.52520835,0.00014624,2]
[399779780,1766667045930,-1115.8401823,0.00014466,2]
[399779781,1766667045988,-2058.00948559,0.00014466,2]
[399779782,1766667045998,-116.47479165,0.00014624,2]
[399779783,1766667046009,-250.0,0.00014624,2]
[399779784,1766667046019,-250.0,0.00014624,2]
[399779785,1766667046029,-250.0,0.00014624,2]
[399779786,1766667046039,-250.0,0.00014624,2]
[399779788,1766667046050,-250.0,0.00014624,2]
[399779790,1766667046060,-250.0,0.00014624,2]
[399779792,1766667046069,-250.0,0.00014624,2]
[399779794,1766667046079,-250.0,0.00014624,2]
[399779796,1766667046088,-250.0,0.00014624,2]
[399779798,1766667046098,-250.0,0.00014624,2]
[399779800,1766667046108,-3278.28572276,0.00014632,2]
[399779802,1766667046121,-303.8,0.00014632,2]
[399779804,1766667046133,-522.02000001,0.00014632,2]
[399779842,1766667625685,8364.65,0.00032877,120]
[399779845,1766667680305,500.0,0.00032,120]
[399779846,1766667696278,500.0,0.00032,120]
[399779847,1766667734441,-241.5154,0.00011916,2]
[399779848,1766667734473,-250.0,0.00011916,2]
[399779849,1766667734500,-248.0,0.00011916,2]
[399779851,1766667769451,-250.0,0.00012286,2]
[399779852,1766667769483,-166.66,0.00012358,2]
[399779853,1766667769510,-166.66,0.00012618,2]
[399779854,1766667769537,-1852.42,0.00012753,2]
[399779855,1766667769564,-3240.0,0.00012838,2]
[399779856,1766667769592,-166.66,0.00012878,2]
[399779857,1766667769619,-250.0,0.00013107,2]
[399779858,1766667769645,-166.66,0.00013138,2]
[399779859,1766667769671,-1200.0,0.00013324,2]
[399779860,1766667769696,-300.0,0.00013325,2]
[399779861,1766667769722,-300.0,0.00013325,2]
[399779862,1766667769753,-166.66,0.00013398,2]
[399779863,1766667769778,-502.0,0.00013425,2]
[399779864,1766667769804,-200.0,0.00013497,2]
[399779865,1766667769828,-207.4,0.00013497,2]
[399779866,1766667769859,-215.0738,0.00013497,2]
[399779867,1766667769885,-223.0315306,0.00013497,2]
[399779868,1766667769911,-231.28369723,0.00013497,2]
[399779869,1766667769936,-239.84119403,0.00013497,2]
[399779870,1766667769961,-248.71531821,0.00013497,2]
[399779871,1766667769988,-257.91778498,0.00013497,2]
[399779872,1766667770014,-267.46074303,0.00013497,2]
[399779873,1766667770040,-572.07789718,0.00013497,2]
[399779874,1766667770065,-407.6376526,0.00013507,2]
[399779875,1766667770097,-500.0,0.00013507,2]
[399779876,1766667770127,-500.0,0.00013507,2]
[399779877,1766667770158,-500.0,0.00013507,2]
[399779878,1766667770188,-500.0,0.00013507,2]
[399779879,1766667770219,-500.0,0.00013507,2]
[399779880,1766667770254,-500.0,0.00013507,2]
[399779881,1766667770289,-500.0,0.00013507,2]
[399779882,1766667770319,-500.0,0.00013507,2]
[399779883,1766667770348,-500.0,0.00013507,2]
[399779884,1766667770376,-632.029855,0.00013507,2]
[399779885,1766667770709,-500.0,0.00013507,2]
[399779886,1766667770740,-500.0,0.00013507,2]
[399779887,1766667770769,-500.0,0.00013507,2]
[399779888,1766667770797,-500.0,0.00013507,2]
[399779889,1766667770824,-500.0,0.00013507,2]
[399779890,1766667770853,-500.0,0.00013507,2]
[399779891,1766667770882,-500.0,0.00013507,2]
[399779892,1766667770910,-500.0,0.00013507,2]
[399779893,1766667770939,-500.0,0.00013507,2]
[399779894,1766667770968,-500.0,0.00013507,2]
[399779895,1766667770997,-500.0,0.00013507,2]
[399779896,1766667771026,-500.0,0.00013507,2]
[399779897,1766667771060,-500.0,0.00013507,2]
[399779898,1766667771089,-500.0,0.00013507,2]
[399779899,1766667771117,-500.0,0.00013507,2]
[399779900,1766667771146,-500.0,0.00013507,2]
[399779901,1766667771171,-150.0,0.00013508,2]
[399779902,1766667771197,-6470.408,0.00013508,2]
[399779903,1766667771223,-351.431,0.00013508,2]
[399779904,1766667771248,-9684.85147313,0.00013509,2]
[399779905,1766667771274,-3008.40416353,0.00013509,2]
[399779906,1766667771300,-450.93113706,0.00013509,2]
[399779907,1766667771324,-197.72643171,0.00013509,2]
[399779908,1766667771348,-322.6107,0.00013589,2]
[399779909,1766667771372,-330.2006515,0.00013589,2]
[399779910,1766667771395,-620.0,0.0001359,2]
[399779911,1766667771419,-200.0,0.0001359,2]
[399779912,1766667771442,-207.4,0.0001359,2]
[399779913,1766667771472,-151.0,0.0001359,2]
[399779914,1766667771502,-500.0,0.0001359,2]
[399779915,1766667771527,-151.0,0.0001359,2]
[399779916,1766667771556,-574.12855637,0.0001359,2]
[399779917,1766667771586,-500.0,0.0001359,2]
[399779918,1766667771614,-500.0,0.0001359,2]
[399779919,1766667771639,-151.0,0.0001359,2]
[399779920,1766667771664,-500.0,0.0001359,2]
[399779921,1766667771689,-500.0,0.0001359,2]
[399779922,1766667771713,-151.0,0.0001359,2]
[399779923,1766667771739,-500.0,0.0001359,2]
[399779924,1766667771766,-500.0,0.0001359,2]
[399779925,1766667771793,-151.0,0.0001359,2]
[399779926,1766667771820,-500.0,0.0001359,2]
[399779927,1766667771847,-500.0,0.0001359,2]
[399779928,1766667771873,-151.0,0.0001359,2]
[399779929,1766667771899,-500.0,0.0001359,2]
[399779930,1766667771931,-500.0,0.0001359,2]
[399779931,1766667771958,-151.0,0.0001359,2]
[399779932,1766667771984,-500.0,0.0001359,2]
[399779933,1766667772009,-500.0,0.0001359,2]
[399779934,1766667772035,-151.0,0.0001359,2]
[399779935,1766667772060,-500.0,0.0001359,2]
[399779936,1766667772087,-500.0,0.0001359,2]
[399779937,1766667772115,-151.0,0.0001359,2]
[399779938,1766667772141,-500.0,0.0001359,2]
[399779939,1766667772167,-626.72929824,0.0001359,2]
[399779940,1766667772192,-151.0,0.0001359,2]
[399779941,1766667772219,-500.0,0.0001359,2]
[399779942,1766667772245,-151.0,0.0001359,2]
[399779943,1766667772270,-500.0,0.0001359,2]
[399779944,1766667772296,-500.0,0.0001359,2]
[399779945,1766667772321,-500.0,0.0001359,2]
[399779946,1766667772346,-500.0,0.0001359,2]
[399779947,1766667772371,-500.0,0.0001359,2]
[399779948,1766667772395,-500.0,0.0001359,2]
[399779949,1766667772420,-500.0,0.0001359,2]
[399779950,1766667772444,-500.0,0.0001359,2]
[399779951,1766667772472,-615.40475298,0.0001359,2]
[399779952,1766667772498,-500.0,0.0001359,2]
[399779953,1766667772524,-468.52172957,0.0001359,2]
[399779954,1766667772549,-500.0,0.0001359,2]
[399779955,1766667772576,-500.0,0.0001359,2]
[399779956,1766667772605,-500.0,0.0001359,2]
[399779957,1766667772635,-500.0,0.0001359,2]
[399779958,1766667772659,-200.0,0.0001359,2]
[399779959,1766667772684,-500.0,0.0001359,2]
[399779960,1766667772710,-500.0,0.0001359,2]
[399779961,1766667772735,-500.0,0.0001359,2]
[399779962,1766667772760,-1500.0,0.0001359,2]
[399779963,1766667772785,-1500.0,0.0001359,2]
[399779964,1766667772811,-1500.0,0.0001359,2]
[399779965,1766667772836,-1500.0,0.0001359,2]
[399779966,1766667772861,-1500.0,0.0001359,2]
[399779967,1766667772886,-1500.0,0.0001359,2]
[399779968,1766667772910,-250.0,0.0001359,2]
[399779969,1766667772934,-250.0,0.0001359,2]
[399779970,1766667772958,-1500.0,0.0001359,2]
[399779971,1766667772982,-250.0,0.0001359,2]
[399779972,1766667773007,-1500.0,0.0001359,2]
[399779973,1766667773033,-250.0,0.0001359,2]
[399779974,1766667773059,-1500.0,0.0001359,2]
[399779975,1766667773088,-250.0,0.0001359,2]
[399779976,1766667773114,-1500.0,0.0001359,2]
[399779977,1766667773139,-250.0,0.0001359,2]
[399779978,1766667773166,-1500.0,0.0001359,2]
[399779979,1766667773191,-250.0,0.0001359,2]
[399779980,1766667773218,-250.0,0.0001359,2]
[399779981,1766667773244,-250.0,0.0001359,2]
[399779982,1766667773271,-250.0,0.0001359,2]
[399779983,1766667773297,-250.0,0.0001359,2]
[399779984,1766667773324,-151.0,0.0001359,2]
[399779985,1766667773350,-151.0,0.00013595,2]
[399779986,1766667773377,-442.04171107,0.00013597,2]
[399779987,1766667773403,-163.9707158,0.00013597,2]
[399779988,1766667773430,-178.53331795,0.00013597,2]
[399779989,1766667773627,-168.99716453,0.00013597,2]
[399779990,1766667773663,-2024.5197237,0.00013598,2]
[399779991,1766667856510,222.66594158,0.00032,120]
[399780002,1766668011141,-2654.97,0.0001314,2]
[399780003,1766668011164,-157.06139656,0.00013404,2]
[399780004,1766668011186,-300.0,0.00013503,2]
[399780005,1766668011207,-1200.0,0.00013503,2]
[399780006,1766668011228,-104.54771816,0.00013503,2]
[399780016,1766668219183,184.0,0.00032877,120]
[399780018,1766668231816,-1000.0,0.00013109,2]
[399780019,1766668231826,-300.0,0.00013109,2]
[399780020,1766668231836,-258.0,0.00013109,2]
[399780021,1766668231846,-300.0,0.00013255,2]
[399780022,1766668231855,-250.0,0.00013258,2]
[399780023,1766668231865,-151.0,0.00013405,2]
[399780024,1766668231875,-150.0,0.00013406,2]
[399780025,1766668231885,-196.0,0.00013406,2]
[399780026,1766668231895,-1200.0,0.00013406,2]
[399780027,1766668231904,-300.0,0.00013406,2]
[399780028,1766668231914,-434.40252031,0.00013407,2]
[399780029,1766668231924,-500.0,0.00013407,2]
[399780030,1766668231933,-500.0,0.00013407,2]
[399780031,1766668231943,-500.0,0.00013407,2]
[399780032,1766668231952,-500.0,0.00013407,2]
[399780033,1766668231962,-500.0,0.00013407,2]
[399780034,1766668231973,-500.0,0.00013407,2]
[399780035,1766668231982,-353.20298551,0.00013407,2]
[399780036,1766668231991,-500.0,0.00013407,2]
[399780037,1766668232001,-500.0,0.00013407,2]
[399780038,1766668232011,-500.0,0.00013407,2]
[399780039,1766668232020,-500.0,0.00013407,2]
[399780040,1766668232030,-500.0,0.00013407,2]
[399780041,1766668232039,-500.0,0.00013407,2]
[399780042,1766668232049,-7529.09314372,0.00013408,2]
[399780043,1766668232060,-440.56810984,0.00013408,2]
[399780044,1766668232072,-4540.26585508,0.00013408,2]
[399780061,1766668237723,-455.08116405,0.00013408,2]
[399780062,1766668237883,-3275.40696767,0.00013408,2]
[399780063,1766668237895,-59773.21526448,0.00013408,2]
[399780064,1766668237940,-500.0,0.00013408,2]
[399780065,1766668237952,-140408.45886317,0.00013408,2]
[399780066,1766668237963,-196456.85596335,0.00013408,2]
[399780128,1766668239875,-365.61052992,0.00013408,2]
[399780156,1766668242858,-300.62075804,0.00013404,2]
[399780157,1766668242869,-221.45293722,0.00013408,2]
[399780158,1766668242959,-490.73101277,0.00013408,2]
[399780159,1766668243070,-1097.0,0.00013408,2]
[399780160,1766668243081,-598.88864342,0.00013408,2]
[399780171,1766668245811,-257.42503718,0.00013404,2]
[399780172,1766668245824,-500.0,0.00013404,2]
[399780173,1766668246079,-342.34871144,0.00013404,2]
[399780174,1766668246092,-8054.67726603,0.00013404,2]
[399780175,1766668246102,-71028.73346509,0.00013408,2]
[399780178,1766668251857,360.0,0.0002,30]
[399780180,1766668301491,850.0,0.0003287,120]
[399780181,1766668302334,1940.0,0.0003287,120]
[399780182,1766668303142,1815.0,0.0003287,120]
[399780202,1766668361732,190.0,0.0003287,120]
[399780204,1766668424343,317.44806942,0.0003287,120]
[399780236,1766668892328,983.28,6.201e-05,2]
[399780237,1766668892516,983.28,6.528e-05,2]
[399780238,1766668892701,983.28,6.854e-05,2]
[399780239,1766668892891,983.28,7.18e-05,2]
[399780240,1766668893090,983.28,7.507e-05,2]
[399780241,1766668893304,983.28,7.833e-05,2]
[399780242,1766668893511,983.28,8.16e-05,2]
[399780243,1766668893703,983.28,8.486e-05,2]
[399780244,1766668893892,983.28,8.812e-05,2]
[399780245,1766668894088,983.28,9.139e-05,2]
[399780246,1766668894283,983.28,9.465e-05,2]
[399780247,1766668894495,983.28,9.792e-05,2]
[399780248,1766668894704,983.28,0.00010118,2]
[399780249,1766668895108,983.28,0.00010444,2]
[399780250,1766668895310,983.28,0.00010771,2]
[399780251,1766668895508,983.28,0.00011097,2]
[399780252,1766668895700,983.28,0.00011423,2]
[399780253,1766668895886,983.28,0.0001175,2]
[399780264,1766669160606,1195.31898644,8e-05,2]
[399780268,1766669254928,7923.0,0.00032877,120]
[399780279,1766669360140,-338.51805894,0.00012004,2]
[399780280,1766669360165,-714.37574681,0.00012059,2]
[399780281,1766669360187,-983.28,0.00012076,2]
[399780282,1766669360209,-338.51805894,0.00012082,2]
[399780283,1766669360230,-250.0,0.00012091,2]
[399780284,1766669360251,-250.0,0.000121,2]
[399780285,1766669360273,-300.0,0.00012103,2]
[399780286,1766669360299,-500.0,0.00012104,2]
[399780287,1766669360325,-229.47321302,0.00012104,2]
[399780288,1766669360346,-499.89294845,0.00012104,2]
[399780289,1766669360375,-500.0,0.00012104,2]
[399780290,1766669360405,-498.99302584,0.00012104,2]
[399780303,1766669432474,-300.0,0.00012103,2]
[399780304,1766669432485,-1200.0,0.00012103,2]
[399780305,1766669432495,-150.0,0.00012103,2]
[399780306,1766669432506,-250.0,0.00012103,2]
[399780307,1766669432516,-500.0,0.00012104,2]
[399780308,1766669432526,-175.86045657,0.00012106,2]
[399780309,1766669432536,-539.2255823,0.00012106,2]
[399780310,1766669432545,-28320.04921429,0.00012107,2]
[399780311,1766669432561,-3144.12495393,0.00012107,2]
[399780312,1766669432574,-8585.07937976,0.00012107,2]
[399780313,1766669432585,-1182.79273477,0.00012107,2]
[399780314,1766669432596,-3644.00137046,0.00012107,2]
[399780315,1766669432608,-518.52597823,0.00012107,2]
[399780316,1766669432620,-5351.0,0.00012107,2]
[399780317,1766669432632,-4105.49267856,0.00012107,2]
[399780318,1766669438053,-500.0,0.00012103,2]
[399780319,1766669438064,-500.0,0.00012103,2]
[399780320,1766669438073,-500.0,0.00012103,2]
[399780321,1766669438083,-300.90627674,0.00012103,2]
[399780322,1766669438094,-1744.71492765,0.00012107,2]
[399780323,1766669438107,-568.6437948,0.00012107,2]
[399780324,1766669438120,-373.89027291,0.00012107,2]
[399780325,1766669438139,-1276.52476537,0.00012107,2]
[399780370,1766669440066,-5131.50992927,0.00012107,2]
[399780371,1766669440076,-338.51805894,0.00012159,2]
[399780372,1766669440086,-3528.34845203,0.00012259,2]
[399780373,1766669440136,-1405.08006027,0.00012259,2]
[399780393,1766669443116,-713.13,0.00012259,2]
[399780413,1766669445960,-175.79181519,0.00012259,2]
[399780414,1766669445972,-59866.75325996,0.00012261,2]
[399780415,1766669445983,-14375.50280276,0.00012271,2]
[399780416,1766669445997,-24299.79719724,0.00012271,2]
[399780417,1766669446007,-354.512958,0.00012299,2]
[399780418,1766669446017,-983.28,0.00012403,2]
[399780419,1766669446027,-159.26,0.00012459,2]
[399780420,1766669446037,-9999.99,0.00012506,2]
[399780421,1766669446048,-150.0,0.00012506,2]
[399780422,1766669446058,-299.99,0.00012506,2]
[399780423,1766669446068,-150.99,0.00012506,2]
[399780424,1766669446077,-187.80477068,0.00012513,2]
[399780425,1766669446087,-205.75,0.00012644,2]
[399780426,1766669446098,-200.0,0.00012769,2]
[399780427,1766669446108,-5822.35032746,0.00012775,2]
[399780428,1766669446118,-1200.54,0.00012817,2]
[399780429,1766669446128,-1500.0,0.00012817,2]
[399780430,1766669446138,-500.0,0.00012822,2]
[399780431,1766669446148,-1600.0,0.00013149,2]
[399780432,1766669446158,-247.0,0.0001318,2]
[399780433,1766669446168,-200.0,0.00013187,2]
[399780434,1766669446178,-151.0,0.00013187,2]
[399780435,1766669446188,-151.0,0.00013187,2]
[399780436,1766669446198,-151.0,0.00013187,2]
[399780437,1766669446209,-500.0,0.00013187,2]
[399780438,1766669446219,-151.0,0.00013187,2]
[399780439,1766669446229,-500.0,0.00013187,2]
[399780440,1766669446240,-151.0,0.00013187,2]
[399780441,1766669446250,-500.0,0.00013187,2]
[399780442,1766669446260,-151.0,0.00013187,2]
[399780443,1766669446271,-500.0,0.00013187,2]
[399780444,1766669446281,-200.0,0.00013187,2]
[399780445,1766669446292,-151.0,0.00013187,2]
[399780446,1766669446310,-500.0,0.00013187,2]
[399780447,1766669446320,-151.0,0.00013187,2]
[399780448,1766669446331,-151.0,0.00013187,2]
[399780450,1766669446341,-151.0,0.00013187,2]
[399780452,1766669446352,-151.0,0.00013187,2]
[399780453,1766669446362,-500.0,0.00013187,2]
[399780454,1766669446372,-207.4,0.00013187,2]
[399780455,1766669446384,-1895.10363957,0.00013195,2]
[399780456,1766669446395,-610.77820515,0.00013196,2]
[399780457,1766669446406,-13.43729472,0.00013215,2]
[399780458,1766669446420,-186.97654398,0.00013215,2]
[399780459,1766669446430,-8239.00591323,0.00013215,2]
[399780460,1766669446441,-200.41383869,0.00013261,2]
[399780461,1766669446451,-206.41016771,0.00013263,2]
[399780462,1766669446719,-395.13859126,0.00013282,2]
[399780463,1766669446805,-250.0,0.00013284,2]
[399780464,1766669446816,-420.0,0.00013285,2]
[399780465,1766669446826,-151.0,0.00013289,2]
[399780466,1766669446837,-151.0,0.00013289,2]
[399780467,1766669446847,-151.0,0.00013289,2]
[399780468,1766669446857,-5822.35032746,0.0001329,2]
[399780469,1766669446867,-13242.33017596,0.00013292,2]
[399780470,1766669446879,-105525.39004889,0.00013292,2]
[399780471,1766669446896,-1322.89955036,0.00013292,2]
[399780472,1766669501529,1381.0,0.0003287,120]
[399780473,1766669502288,254.0,0.0003287,120]
[399780474,1766669508192,328.0,0.0003287,120]
[399780475,1766669564559,874.0,0.0003287,120]
[399780476,1766669575946,999.0,0.00012471,3]
[399780485,1766669624174,465.0,0.0003287,120]
[399780486,1766669647547,500.0,0.000119,2]
[399780487,1766669717613,536.48087031,0.000119,2]
[399780494,1766669812885,1725.71,0.0003287,120]
[399780498,1766669869162,1000.0,0.0003287,120]
[399780515,1766670334471,3240.0,0.00011971,2]
[399780516,1766670394149,-241.85615085,0.00012095,2]
[399780517,1766670510175,1852.42,0.00011956,2]
[399780521,1766670632037,-300.0,0.00012093,2]
[399780522,1766670632049,-1200.0,0.00012093,2]
[399780523,1766670632061,-500.0,0.00012094,2]
[399780524,1766670632072,-500.0,0.00012094,2]
[399780525,1766670632084,-500.0,0.00012094,2]
[399780526,1766670632096,-500.0,0.00012094,2]
[399780527,1766670632108,-500.0,0.00012094,2]
[399780528,1766670632119,-500.0,0.00012094,2]
[399780529,1766670632130,-500.0,0.00012094,2]
[399780530,1766670632141,-500.0,0.00012094,2]
[399780531,1766670632152,-500.0,0.00012094,2]
[399780532,1766670632164,-500.0,0.00012094,2]
[399780533,1766670632175,-500.0,0.00012094,2]
[399780534,1766670632192,-282.32946424,0.00012094,2]
[399780535,1766670632204,-500.0,0.00012094,2]
[399780536,1766670632219,-500.0,0.00012094,2]
[399780537,1766670632233,-500.0,0.00012094,2]
[399780538,1766670632245,-500.0,0.00012094,2]
[399780539,1766670632260,-500.0,0.00012094,2]
[399780541,1766670632271,-500.0,0.00012094,2]
[399780543,1766670632282,-500.0,0.00012094,2]
[399780545,1766670632294,-500.0,0.00012094,2]
[399780547,1766670632304,-500.0,0.00012094,2]
[399780549,1766670632315,-500.0,0.00012094,2]
[399780551,1766670632326,-200.62823019,0.00012094,2]
[399780553,1766670632339,-299.37176981,0.00012094,2]
[399780555,1766670632350,-500.0,0.00012094,2]
[399780557,1766670632360,-500.0,0.00012094,2]
[399780559,1766670632370,-500.0,0.00012094,2]
[399780562,1766670632383,-500.0,0.00012094,2]
[399780564,1766670632394,-500.0,0.00012094,2]
[399780566,1766670632404,-500.0,0.00012094,2]
[399780568,1766670632414,-500.0,0.00012094,2]
[399780570,1766670632426,-500.0,0.00012094,2]
[399780572,1766670632438,-500.0,0.00012094,2]
[399780574,1766670632451,-500.0,0.00012094,2]
[399780577,1766670632463,-500.0,0.00012094,2]
[399780579,1766670632474,-500.0,0.00012094,2]
[399780581,1766670632483,-500.0,0.00012094,2]
[399780583,1766670632493,-500.0,0.00012094,2]
[399780585,1766670632503,-500.0,0.00012094,2]
[399780587,1766670632513,-500.0,0.00012094,2]
[399780588,1766670632523,-500.0,0.00012094,2]
[399780591,1766670632533,-500.0,0.00012094,2]
[399780593,1766670632543,-500.0,0.00012094,2]
[399780595,1766670632554,-500.0,0.00012094,2]
[399780597,1766670632565,-500.0,0.00012094,2]
[399780599,1766670632576,-500.0,0.00012094,2]
[399780601,1766670632587,-500.0,0.00012094,2]
[399780603,1766670632599,-500.0,0.00012094,2]
[399780605,1766670632611,-500.0,0.00012094,2]
[399780607,1766670632622,-500.0,0.00012094,2]
[399780609,1766670632632,-500.0,0.00012094,2]